[Event "Titled Tuesday Blitz December 06 Late 2022"]
[White "Vlassov, Nikolai"]
[Black "Milikow, Yoav"]
[WhiteFideId "4103360"]
[BlackFideId "2822237"]
[WhiteElo "2324"]
[BlackElo "2416"]
[Result "1-0"]
[Round "05"]
[TimeControl "180+1"]
[Date "2022.12.06"]
[WhiteClock "0:00:05"]
[BlackClock "0:00:07"]

1. e4 {[%clk 0:03:00]}  e6 {[%clk 0:02:56]} 2. c4 {[%clk 0:03:00]}  c5 {[%clk 0:02:53]} 3. Nc3 {[%clk 0:02:59]}  Nc6 {[%clk 0:02:54]} 4. Nf3 {[%clk 0:02:59]}  g6 {[%clk 0:02:54]} 5. d4 {[%clk 0:02:59]}  cxd4 {[%clk 0:02:55]} 6. Nxd4 {[%clk 0:02:59]}  Bg7 {[%clk 0:02:55]} 7. Be3 {[%clk 0:03:00]}  Nge7 {[%clk 0:02:54]} 8. Be2 {[%clk 0:03:00]}  O-O {[%clk 0:02:54]} 9. O-O {[%clk 0:02:59]}  f5 {[%clk 0:02:55]} 10. exf5 {[%clk 0:02:52]}  Bxd4 {[%clk 0:02:55]} 11. Bxd4 {[%clk 0:02:49]}  Nxf5 {[%clk 0:02:55]} 12. Bc5 {[%clk 0:02:47]}  d6 {[%clk 0:02:55]} 13. Ba3 {[%clk 0:02:46]}  a6 {[%clk 0:02:50]} 14. Bg4 {[%clk 0:02:35]}  Nfd4 {[%clk 0:02:49]} 15. Ne4 {[%clk 0:02:21]}  Rf4 {[%clk 0:02:20]} 16. Nxd6 {[%clk 0:02:07]}  Qg5 {[%clk 0:02:14]} 17. Bh3 {[%clk 0:01:57]}  Rf3 {[%clk 0:01:30]} 18. Kh1 {[%clk 0:01:44]}  Rxh3 {[%clk 0:01:24]} 19. gxh3 {[%clk 0:01:43]}  b5 {[%clk 0:01:15]} 20. cxb5 {[%clk 0:01:23]}  axb5 {[%clk 0:01:13]} 21. Nxc8 {[%clk 0:01:23]}  Rxc8 {[%clk 0:01:06]} 22. b3 {[%clk 0:01:14]}  Rf8 {[%clk 0:00:57]} 23. Qg4 {[%clk 0:01:09]}  Qd5+ {[%clk 0:00:56]} 24. Qg2 {[%clk 0:01:08]}  Rf3 {[%clk 0:00:55]} 25. Bb2 {[%clk 0:01:06]}  Qf5 {[%clk 0:00:47]} 26. Rae1 {[%clk 0:00:53]}  e5 {[%clk 0:00:43]} 27. Re3 {[%clk 0:00:47]}  e4 {[%clk 0:00:36]} 28. Rxf3 {[%clk 0:00:36]}  exf3 {[%clk 0:00:34]} 29. Qg4 {[%clk 0:00:36]}  Qd3 {[%clk 0:00:32]} 30. Re1 {[%clk 0:00:31]}  Qd2 {[%clk 0:00:29]} 31. Re8+ {[%clk 0:00:15]}  Kg7 {[%clk 0:00:27]} 32. Bxd4+ {[%clk 0:00:14]}  Nxd4 {[%clk 0:00:26]} 33. Qg1 {[%clk 0:00:12]}  Kf7 {[%clk 0:00:19]} 34. Re3 {[%clk 0:00:11]}  Kg8 {[%clk 0:00:16]} 35. Qf1 {[%clk 0:00:10]}  Nf5 {[%clk 0:00:12]} 36. Rxf3 {[%clk 0:00:09]}  Qd5 {[%clk 0:00:12]} 37. Qe2 {[%clk 0:00:05]}  Kg7 {[%clk 0:00:06]} 38. Kg1 {[%clk 0:00:05]}  Nd4 {[%clk 0:00:06]} 39. Qe7+ {[%clk 0:00:05]}  Kh6 {[%clk 0:00:07]} 40. Qf8+ {[%clk 0:00:05]}  Kh5 {[%clk 0:00:07]} 41. Rf4 {[%clk 0:00:04]}  Ne2+ {[%clk 0:00:07]} 42. Kf1 {[%clk 0:00:05]}  Qd1+ {[%clk 0:00:07]} 43. Kg2 {[%clk 0:00:05]}  Qg1+ {[%clk 0:00:07]} 44. Kf3 {[%clk 0:00:05]}  Nc3 {[%clk 0:00:07]} 45. Rh4+ {[%clk 0:00:04]}  Kg5 {[%clk 0:00:07]} 46. Qf4# {[%clk 0:00:05]} 1-0


[Site "https://www.chess.com"]

[Event "Titled Tuesday Blitz December 06 Late 2022"]
[White "Walentukiewicz, Michal"]
[Black "Osmonbekov, Talaibek"]
[WhiteFideId "1126903"]
[BlackFideId "2017253"]
[WhiteElo "2028"]
[BlackElo "2135"]
[Result "0-1"]
[Round "05"]
[TimeControl "180+1"]
[Date "2022.12.07"]
[WhiteClock "0:02:09"]
[BlackClock "0:00:17"]

1. g3 {[%clk 0:03:00]}  e5 {[%clk 0:02:58]} 2. Bg2 {[%clk 0:03:01]}  d6 {[%clk 0:02:58]} 3. c4 {[%clk 0:03:01]}  f5 {[%clk 0:02:59]} 4. Nc3 {[%clk 0:03:01]}  Nf6 {[%clk 0:02:59]} 5. d3 {[%clk 0:03:01]}  Be7 {[%clk 0:03:00]} 6. Nf3 {[%clk 0:03:02]}  O-O {[%clk 0:03:01]} 7. O-O {[%clk 0:03:03]}  Qe8 {[%clk 0:03:00]} 8. Bg5 {[%clk 0:03:03]}  Qg6 {[%clk 0:02:47]} 9. Bxf6 {[%clk 0:03:03]}  Bxf6 {[%clk 0:02:47]} 10. Nd5 {[%clk 0:03:03]}  Bd8 {[%clk 0:02:47]} 11. b4 {[%clk 0:03:01]}  c6 {[%clk 0:02:42]} 12. Nc3 {[%clk 0:03:00]}  Nd7 {[%clk 0:02:22]} 13. b5 {[%clk 0:02:59]}  Nc5 {[%clk 0:02:05]} 14. bxc6 {[%clk 0:02:59]}  bxc6 {[%clk 0:02:05]} 15. Nh4 {[%clk 0:02:53]}  Bxh4 {[%clk 0:02:03]} 16. gxh4 {[%clk 0:02:52]}  Bd7 {[%clk 0:01:42]} 17. Kh1 {[%clk 0:02:52]}  Qf6 {[%clk 0:01:41]} 18. Na4 {[%clk 0:02:49]}  Ne6 {[%clk 0:01:36]} 19. e3 {[%clk 0:02:46]}  f4 {[%clk 0:01:28]} 20. Qf3 {[%clk 0:02:28]}  Qxh4 {[%clk 0:01:22]} 21. Rab1 {[%clk 0:02:23]}  Ng5 {[%clk 0:01:01]} 22. Qd1 {[%clk 0:02:21]}  f3 {[%clk 0:01:00]} 23. Rg1 {[%clk 0:02:21]}  fxg2+ {[%clk 0:00:55]} 24. Rxg2 {[%clk 0:02:22]}  Rxf2 {[%clk 0:00:52]} 25. Qg1 {[%clk 0:02:20]}  Rxg2 {[%clk 0:00:49]} 26. Qxg2 {[%clk 0:02:21]}  Bg4 {[%clk 0:00:37]} 27. Rf1 {[%clk 0:02:18]}  e4 {[%clk 0:00:28]} 28. Qg3 {[%clk 0:02:12]}  Bf3+ {[%clk 0:00:22]} 29. Rxf3 {[%clk 0:02:11]}  Nxf3 {[%clk 0:00:22]} 30. Qxd6 {[%clk 0:02:09]}  Qf2 {[%clk 0:00:17]} 0-1


[Site "https://www.chess.com"]

[Event "Titled Tuesday Blitz December 06 Late 2022"]
[White "Winterberg, Lukas"]
[Black "Darini, Pouria"]
[WhiteFideId "24622702"]
[BlackFideId "12502200"]
[WhiteElo "2350"]
[BlackElo "2482"]
[Result "1-0"]
[Round "05"]
[TimeControl "180+1"]
[Date "2022.12.07"]
[WhiteClock "0:00:36"]
[BlackClock "0:00:06"]

1. Nf3 {[%clk 0:02:58]}  d5 {[%clk 0:02:58]} 2. d4 {[%clk 0:02:56]}  Nf6 {[%clk 0:02:58]} 3. c4 {[%clk 0:02:57]}  e6 {[%clk 0:02:58]} 4. Nc3 {[%clk 0:02:57]}  c5 {[%clk 0:02:56]} 5. cxd5 {[%clk 0:02:57]}  Nxd5 {[%clk 0:02:56]} 6. e4 {[%clk 0:02:57]}  Nxc3 {[%clk 0:02:57]} 7. bxc3 {[%clk 0:02:58]}  cxd4 {[%clk 0:02:57]} 8. cxd4 {[%clk 0:02:59]}  Bb4+ {[%clk 0:02:58]} 9. Bd2 {[%clk 0:02:59]}  Bxd2+ {[%clk 0:02:59]} 10. Qxd2 {[%clk 0:03:00]}  O-O {[%clk 0:03:00]} 11. Bc4 {[%clk 0:02:59]}  b6 {[%clk 0:03:00]} 12. d5 {[%clk 0:02:58]}  Ba6 {[%clk 0:02:59]} 13. Bxa6 {[%clk 0:02:54]}  Nxa6 {[%clk 0:03:00]} 14. dxe6 {[%clk 0:02:55]}  fxe6 {[%clk 0:02:55]} 15. Qe2 {[%clk 0:02:37]}  Nc5 {[%clk 0:02:55]} 16. O-O {[%clk 0:02:37]}  Rf4 {[%clk 0:02:27]} 17. e5 {[%clk 0:02:29]}  Qd3 {[%clk 0:02:20]} 18. Qxd3 {[%clk 0:02:11]}  Nxd3 {[%clk 0:02:20]} 19. Rfd1 {[%clk 0:02:11]}  Rd8 {[%clk 0:02:06]} 20. Rd2 {[%clk 0:02:05]}  Rd5 {[%clk 0:02:06]} 21. Rad1 {[%clk 0:02:01]}  Nxe5 {[%clk 0:02:07]} 22. Ng5 {[%clk 0:01:39]}  Rg4 {[%clk 0:01:20]} 23. f4 {[%clk 0:01:25]}  Rxf4 {[%clk 0:00:44]} 24. Rxd5 {[%clk 0:01:13]}  exd5 {[%clk 0:00:45]} 25. Rxd5 {[%clk 0:01:13]}  Rf5 {[%clk 0:00:45]} 26. Rd8+ {[%clk 0:00:59]}  Rf8 {[%clk 0:00:46]} 27. Rxf8+ {[%clk 0:01:00]}  Kxf8 {[%clk 0:00:46]} 28. Nxh7+ {[%clk 0:01:01]}  Ke7 {[%clk 0:00:46]} 29. Kf2 {[%clk 0:00:56]}  Kd6 {[%clk 0:00:30]} 30. Ng5 {[%clk 0:00:55]}  Kd5 {[%clk 0:00:21]} 31. h4 {[%clk 0:00:54]}  Kc4 {[%clk 0:00:20]} 32. Ne6 {[%clk 0:00:51]}  g6 {[%clk 0:00:19]} 33. Ke3 {[%clk 0:00:51]}  Kb4 {[%clk 0:00:18]} 34. Ke4 {[%clk 0:00:51]}  Nc4 {[%clk 0:00:15]} 35. Nf4 {[%clk 0:00:51]}  Ka3 {[%clk 0:00:08]} 36. Nxg6 {[%clk 0:00:48]}  Kxa2 {[%clk 0:00:09]} 37. h5 {[%clk 0:00:48]}  b5 {[%clk 0:00:09]} 38. h6 {[%clk 0:00:40]}  b4 {[%clk 0:00:06]} 39. Kd5 {[%clk 0:00:36]} 1-0


[Site "https://www.chess.com"]

[Event "Titled Tuesday Blitz December 06 Late 2022"]
[White "Xu, Grant"]
[Black "Pultinevicius, Paulius"]
[WhiteFideId "2052318"]
[BlackFideId "12809390"]
[WhiteElo "2186"]
[BlackElo "2486"]
[Result "0-1"]
[Round "05"]
[TimeControl "180+1"]
[Date "2022.12.06"]
[WhiteClock "0:00:06"]
[BlackClock "0:00:07"]

1. e4 {[%clk 0:03:00]}  g6 {[%clk 0:02:55]} 2. d4 {[%clk 0:03:00]}  Bg7 {[%clk 0:02:55]} 3. Nc3 {[%clk 0:03:01]}  a6 {[%clk 0:02:53]} 4. a4 {[%clk 0:03:00]}  d6 {[%clk 0:02:50]} 5. Be3 {[%clk 0:03:01]}  Nc6 {[%clk 0:02:44]} 6. Nf3 {[%clk 0:02:57]}  Bg4 {[%clk 0:02:43]} 7. Be2 {[%clk 0:02:56]}  e5 {[%clk 0:02:37]} 8. d5 {[%clk 0:02:54]}  Bxf3 {[%clk 0:02:37]} 9. Bxf3 {[%clk 0:02:46]}  Nd4 {[%clk 0:02:37]} 10. Bxd4 {[%clk 0:02:32]}  exd4 {[%clk 0:02:36]} 11. Ne2 {[%clk 0:02:33]}  Qf6 {[%clk 0:02:13]} 12. Ra3 {[%clk 0:02:33]}  Ne7 {[%clk 0:02:12]} 13. Rb3 {[%clk 0:02:29]}  Rb8 {[%clk 0:02:10]} 14. O-O {[%clk 0:02:19]}  O-O {[%clk 0:02:09]} 15. Qd2 {[%clk 0:02:11]}  c6 {[%clk 0:01:53]} 16. Rd1 {[%clk 0:01:52]}  cxd5 {[%clk 0:01:51]} 17. exd5 {[%clk 0:01:52]}  Rfc8 {[%clk 0:01:52]} 18. Nxd4 {[%clk 0:01:50]}  Qxd4 {[%clk 0:01:47]} 19. Qxd4 {[%clk 0:01:51]}  Bxd4 {[%clk 0:01:48]} 20. Rxd4 {[%clk 0:01:51]}  Rxc2 {[%clk 0:01:49]} 21. g4 {[%clk 0:01:51]}  b5 {[%clk 0:01:21]} 22. axb5 {[%clk 0:01:32]}  axb5 {[%clk 0:01:22]} 23. Re3 {[%clk 0:01:28]}  Kf8 {[%clk 0:01:15]} 24. b3 {[%clk 0:01:28]}  g5 {[%clk 0:01:15]} 25. Be4 {[%clk 0:01:24]}  Rc1+ {[%clk 0:01:15]} 26. Kg2 {[%clk 0:01:24]}  h6 {[%clk 0:01:15]} 27. Rf3 {[%clk 0:01:21]}  Kg7 {[%clk 0:01:14]} 28. Rb4 {[%clk 0:01:02]}  Rc5 {[%clk 0:01:03]} 29. Rd4 {[%clk 0:01:01]}  b4 {[%clk 0:01:02]} 30. Re3 {[%clk 0:00:55]}  Ng8 {[%clk 0:01:01]} 31. Bf3 {[%clk 0:00:54]}  Nf6 {[%clk 0:00:42]} 32. Red3 {[%clk 0:00:42]}  Rbb5 {[%clk 0:00:41]} 33. h3 {[%clk 0:00:40]}  Nd7 {[%clk 0:00:40]} 34. Re3 {[%clk 0:00:38]}  Nf6 {[%clk 0:00:37]} 35. Red3 {[%clk 0:00:37]}  Kf8 {[%clk 0:00:36]} 36. Kg3 {[%clk 0:00:34]}  Rc3 {[%clk 0:00:27]} 37. Kg2 {[%clk 0:00:28]}  Rxd3 {[%clk 0:00:27]} 38. Rxd3 {[%clk 0:00:28]}  Nd7 {[%clk 0:00:27]} 39. Re3 {[%clk 0:00:20]}  Ne5 {[%clk 0:00:22]} 40. Re4 {[%clk 0:00:20]}  Rb6 {[%clk 0:00:17]} 41. Rd4 {[%clk 0:00:20]}  Kg7 {[%clk 0:00:17]} 42. Be2 {[%clk 0:00:19]}  Kf6 {[%clk 0:00:17]} 43. Kg3 {[%clk 0:00:19]}  Rb8 {[%clk 0:00:16]} 44. h4 {[%clk 0:00:19]}  Rb7 {[%clk 0:00:11]} 45. hxg5+ {[%clk 0:00:20]}  hxg5 {[%clk 0:00:12]} 46. f4 {[%clk 0:00:20]}  gxf4+ {[%clk 0:00:11]} 47. Kxf4 {[%clk 0:00:21]}  Ng6+ {[%clk 0:00:11]} 48. Kf3 {[%clk 0:00:19]}  Ke5 {[%clk 0:00:11]} 49. Re4+ {[%clk 0:00:16]}  Kxd5 {[%clk 0:00:09]} 50. Bc4+ {[%clk 0:00:17]}  Kc5 {[%clk 0:00:10]} 51. Re8 {[%clk 0:00:17]}  Ne5+ {[%clk 0:00:10]} 52. Ke3 {[%clk 0:00:18]}  Rc7 {[%clk 0:00:09]} 53. Be2 {[%clk 0:00:17]}  Kd5 {[%clk 0:00:07]} 54. Kd2 {[%clk 0:00:14]}  Kd4 {[%clk 0:00:06]} 55. Rb8 {[%clk 0:00:14]}  Nc6 {[%clk 0:00:06]} 56. Rb6 {[%clk 0:00:14]}  Kc5 {[%clk 0:00:05]} 57. Rb5+ {[%clk 0:00:13]}  Kd4 {[%clk 0:00:04]} 58. g5 {[%clk 0:00:13]}  d5 {[%clk 0:00:04]} 59. Bf3 {[%clk 0:00:12]}  Rd7 {[%clk 0:00:05]} 60. Rb6 {[%clk 0:00:09]}  Kc5 {[%clk 0:00:05]} 61. Ra6 {[%clk 0:00:08]}  Nd4 {[%clk 0:00:05]} 62. Bd1 {[%clk 0:00:09]}  Re7 {[%clk 0:00:05]} 63. Rf6 {[%clk 0:00:09]}  Ne6 {[%clk 0:00:04]} 64. g6 {[%clk 0:00:09]}  fxg6 {[%clk 0:00:05]} 65. Rxg6 {[%clk 0:00:09]}  Nd4 {[%clk 0:00:05]} 66. Rg8 {[%clk 0:00:09]}  Rh7 {[%clk 0:00:05]} 67. Rc8+ {[%clk 0:00:10]}  Kd6 {[%clk 0:00:06]} 68. Rb8 {[%clk 0:00:10]}  Nc6 {[%clk 0:00:04]} 69. Rg8 {[%clk 0:00:10]}  Rh2+ {[%clk 0:00:05]} 70. Ke3 {[%clk 0:00:10]}  Kc5 {[%clk 0:00:05]} 71. Rc8 {[%clk 0:00:07]}  Kd6 {[%clk 0:00:05]} 72. Rg8 {[%clk 0:00:07]}  Rb2 {[%clk 0:00:05]} 73. Rg6+ {[%clk 0:00:06]}  Kc5 {[%clk 0:00:05]} 74. Rg4 {[%clk 0:00:06]}  Ne5 {[%clk 0:00:04]} 75. Rg5 {[%clk 0:00:05]}  Nf7 {[%clk 0:00:04]} 76. Rh5 {[%clk 0:00:05]}  Nd6 {[%clk 0:00:04]} 77. Rg5 {[%clk 0:00:04]}  Nb5 {[%clk 0:00:04]} 78. Kd3 {[%clk 0:00:04]}  Nc3 {[%clk 0:00:04]} 79. Bc2 {[%clk 0:00:05]}  Ra2 {[%clk 0:00:03]} 80. Rh5 {[%clk 0:00:05]}  Ne4 {[%clk 0:00:03]} 81. Rh8 {[%clk 0:00:05]}  Nf2+ {[%clk 0:00:03]} 82. Kd2 {[%clk 0:00:05]}  Ne4+ {[%clk 0:00:04]} 83. Kd3 {[%clk 0:00:06]}  Kd6 {[%clk 0:00:04]} 84. Rd8+ {[%clk 0:00:06]}  Ke5 {[%clk 0:00:04]} 85. Rb8 {[%clk 0:00:07]}  Nc5+ {[%clk 0:00:04]} 86. Kd2 {[%clk 0:00:03]}  Nxb3+ {[%clk 0:00:04]} 87. Kd1 {[%clk 0:00:03]}  Nd4 {[%clk 0:00:04]} 88. Bd3 {[%clk 0:00:02]}  b3 {[%clk 0:00:04]} 89. Kc1 {[%clk 0:00:03]}  Kf4 {[%clk 0:00:03]} 90. Re8 {[%clk 0:00:02]}  Rf2 {[%clk 0:00:02]} 91. Kb1 {[%clk 0:00:03]}  Rd2 {[%clk 0:00:02]} 92. Bg6 {[%clk 0:00:02]}  Nb5 {[%clk 0:00:02]} 93. Rc8 {[%clk 0:00:02]}  Na3+ {[%clk 0:00:03]} 94. Kc1 {[%clk 0:00:03]}  Rf2 {[%clk 0:00:02]} 95. Rc3 {[%clk 0:00:02]}  b2+ {[%clk 0:00:02]} 96. Kd1 {[%clk 0:00:03]}  b1=Q+ {[%clk 0:00:03]} 97. Bxb1 {[%clk 0:00:04]}  Nxb1 {[%clk 0:00:04]} 98. Rd3 {[%clk 0:00:04]}  Ke4 {[%clk 0:00:04]} 99. Rb3 {[%clk 0:00:04]}  Nd2 {[%clk 0:00:04]} 100. Rb4+ {[%clk 0:00:05]}  Nc4 {[%clk 0:00:05]} 101. Rb8 {[%clk 0:00:05]}  Kd4 {[%clk 0:00:05]} 102. Rh8 {[%clk 0:00:05]}  Rd2+ {[%clk 0:00:05]} 103. Kc1 {[%clk 0:00:06]}  Rd3 {[%clk 0:00:06]} 104. Rh4+ {[%clk 0:00:06]}  Kc3 {[%clk 0:00:07]} 105. Rh2 {[%clk 0:00:07]}  Ne3 {[%clk 0:00:07]} 106. Ra2 {[%clk 0:00:06]}  Rd1# {[%clk 0:00:07]} 0-1


[Site "https://www.chess.com"]

[Event "Titled Tuesday Blitz December 06 Late 2022"]
[White "Yoo, Christopher Woojin"]
[Black "Koellner, Ruben Gideon"]
[WhiteFideId "30909694"]
[BlackFideId "12993093"]
[WhiteElo "2463"]
[BlackElo "2303"]
[Result "1-0"]
[Round "05"]
[TimeControl "180+1"]
[Date "2022.12.06"]
[WhiteClock "0:01:29"]
[BlackClock "0:01:34"]

1. Nf3 {[%clk 0:03:00]}  Nf6 {[%clk 0:02:59]} 2. c4 {[%clk 0:02:59]}  e6 {[%clk 0:02:59]} 3. Nc3 {[%clk 0:02:59]}  d5 {[%clk 0:02:59]} 4. e3 {[%clk 0:02:59]}  Be7 {[%clk 0:02:58]} 5. b3 {[%clk 0:02:59]}  O-O {[%clk 0:02:58]} 6. Bb2 {[%clk 0:02:59]}  c5 {[%clk 0:02:59]} 7. cxd5 {[%clk 0:02:59]}  Nxd5 {[%clk 0:02:57]} 8. Qc2 {[%clk 0:02:57]}  Nxc3 {[%clk 0:02:54]} 9. Bxc3 {[%clk 0:02:53]}  Nc6 {[%clk 0:02:51]} 10. h4 {[%clk 0:02:47]}  h6 {[%clk 0:02:49]} 11. h5 {[%clk 0:02:16]}  Bf6 {[%clk 0:02:39]} 12. Be2 {[%clk 0:02:00]}  Nb4 {[%clk 0:02:32]} 13. Qb2 {[%clk 0:01:57]}  Nd5 {[%clk 0:02:23]} 14. Bxf6 {[%clk 0:01:55]}  Qxf6 {[%clk 0:02:23]} 15. Qxf6 {[%clk 0:01:52]}  gxf6 {[%clk 0:02:23]} 16. d4 {[%clk 0:01:50]}  cxd4 {[%clk 0:02:20]} 17. Nxd4 {[%clk 0:01:51]}  Bd7 {[%clk 0:02:19]} 18. Bf3 {[%clk 0:01:48]}  Bc6 {[%clk 0:02:14]} 19. Nxc6 {[%clk 0:01:45]}  bxc6 {[%clk 0:02:14]} 20. O-O-O {[%clk 0:01:38]}  a5 {[%clk 0:02:05]} 21. Rh4 {[%clk 0:01:36]}  Rfb8 {[%clk 0:01:58]} 22. Rc4 {[%clk 0:01:33]}  a4 {[%clk 0:01:48]} 23. bxa4 {[%clk 0:01:32]}  Rb4 {[%clk 0:01:34]} 24. Bxd5 {[%clk 0:01:29]} 1-0


[Site "https://www.chess.com"]

[Event "Titled Tuesday Blitz December 06 Late 2022"]
[White "Yurasova, Daria"]
[Black "Slovineanu"]
[WhiteFideId "34146919"]
[WhiteElo "2098"]
[BlackElo "2288"]
[Result "1-0"]
[Round "05"]
[TimeControl "180+1"]
[Date "2022.12.07"]
[WhiteClock "0:00:19"]
[BlackClock "0:00:01"]

1. d4 {[%clk 0:02:59]}  Nf6 {[%clk 0:02:59]} 2. Bg5 {[%clk 0:02:58]}  Ne4 {[%clk 0:02:58]} 3. Bf4 {[%clk 0:02:58]}  d5 {[%clk 0:02:58]} 4. Nd2 {[%clk 0:02:58]}  Bf5 {[%clk 0:02:57]} 5. Ngf3 {[%clk 0:02:59]}  e6 {[%clk 0:02:56]} 6. e3 {[%clk 0:02:59]}  Nd7 {[%clk 0:02:52]} 7. Bd3 {[%clk 0:02:59]}  Nxd2 {[%clk 0:02:51]} 8. Qxd2 {[%clk 0:02:59]}  Bxd3 {[%clk 0:02:50]} 9. Qxd3 {[%clk 0:02:58]}  c6 {[%clk 0:02:49]} 10. O-O {[%clk 0:02:59]}  Be7 {[%clk 0:02:49]} 11. c4 {[%clk 0:03:00]}  O-O {[%clk 0:02:48]} 12. Rfd1 {[%clk 0:02:58]}  Nf6 {[%clk 0:02:42]} 13. c5 {[%clk 0:02:54]}  a5 {[%clk 0:01:56]} 14. a3 {[%clk 0:02:48]}  a4 {[%clk 0:01:55]} 15. Qc3 {[%clk 0:02:43]}  b6 {[%clk 0:01:41]} 16. cxb6 {[%clk 0:02:40]}  Qxb6 {[%clk 0:01:41]} 17. Ne5 {[%clk 0:02:39]}  Rfc8 {[%clk 0:01:40]} 18. Rac1 {[%clk 0:02:35]}  c5 {[%clk 0:01:35]} 19. dxc5 {[%clk 0:02:21]}  Rxc5 {[%clk 0:01:35]} 20. Qd2 {[%clk 0:02:16]}  Ne4 {[%clk 0:01:28]} 21. Qe2 {[%clk 0:02:16]}  Rac8 {[%clk 0:01:10]} 22. Rxc5 {[%clk 0:02:13]}  Qxc5 {[%clk 0:01:07]} 23. f3 {[%clk 0:01:47]}  Nf6 {[%clk 0:01:06]} 24. Qa6 {[%clk 0:01:41]}  Rb8 {[%clk 0:00:48]} 25. Nc6 {[%clk 0:01:29]}  Rxb2 {[%clk 0:00:30]} 26. Nxe7+ {[%clk 0:01:24]}  Qxe7 {[%clk 0:00:28]} 27. Bd6 {[%clk 0:01:16]}  Qb7 {[%clk 0:00:14]} 28. Qxa4 {[%clk 0:01:09]}  h5 {[%clk 0:00:13]} 29. Be5 {[%clk 0:01:06]}  Rb1 {[%clk 0:00:12]} 30. Bxf6 {[%clk 0:01:06]}  gxf6 {[%clk 0:00:11]} 31. Rxb1 {[%clk 0:00:45]}  Qxb1+ {[%clk 0:00:11]} 32. Kf2 {[%clk 0:00:46]}  Qc1 {[%clk 0:00:11]} 33. Qb4 {[%clk 0:00:30]}  e5 {[%clk 0:00:10]} 34. a4 {[%clk 0:00:28]}  Qa1 {[%clk 0:00:02]} 35. a5 {[%clk 0:00:27]}  d4 {[%clk 0:00:03]} 36. exd4 {[%clk 0:00:26]}  exd4 {[%clk 0:00:03]} 37. Ke2 {[%clk 0:00:25]}  Qa2+ {[%clk 0:00:03]} 38. Kd3 {[%clk 0:00:26]}  Qxg2 {[%clk 0:00:03]} 39. Kxd4 {[%clk 0:00:20]}  Qxf3 {[%clk 0:00:03]} 40. Kc5 {[%clk 0:00:20]}  Qe3+ {[%clk 0:00:03]} 41. Kc6 {[%clk 0:00:20]}  Qf3+ {[%clk 0:00:03]} 42. Kb6 {[%clk 0:00:19]}  Qe3+ {[%clk 0:00:03]} 43. Qc5 {[%clk 0:00:20]}  Qb3+ {[%clk 0:00:03]} 44. Kc7 {[%clk 0:00:21]}  Qa2 {[%clk 0:00:02]} 45. Qb6 {[%clk 0:00:19]}  f5 {[%clk 0:00:01]} 46. a6 {[%clk 0:00:19]}  f4 {[%clk 0:00:02]} 47. a7 {[%clk 0:00:19]}  Qc4+ {[%clk 0:00:01]} 48. Kd6 {[%clk 0:00:18]}  Qd3+ {[%clk 0:00:01]} 49. Ke5 {[%clk 0:00:19]} 1-0


[Site "https://www.chess.com"]

[Event "Titled Tuesday Blitz December 06 Late 2022"]
[White "Zhu, Jiner"]
[Black "Bryant, Todd"]
[WhiteFideId "8608059"]
[BlackFideId "2031299"]
[WhiteElo "2384"]
[BlackElo "2322"]
[Result "1-0"]
[Round "05"]
[TimeControl "180+1"]
[Date "2022.12.07"]
[WhiteClock "0:00:22"]
[BlackClock "0:00:02"]

1. d4 {[%clk 0:02:34]}  Nf6 {[%clk 0:02:58]} 2. Nc3 {[%clk 0:02:34]}  d5 {[%clk 0:02:57]} 3. Nf3 {[%clk 0:02:34]}  g6 {[%clk 0:02:57]} 4. Bf4 {[%clk 0:02:34]}  Bg7 {[%clk 0:02:57]} 5. e3 {[%clk 0:02:29]}  O-O {[%clk 0:02:46]} 6. h3 {[%clk 0:02:29]}  c5 {[%clk 0:02:47]} 7. dxc5 {[%clk 0:02:28]}  Nbd7 {[%clk 0:02:44]} 8. Nxd5 {[%clk 0:02:24]}  Nxd5 {[%clk 0:02:40]} 9. Qxd5 {[%clk 0:02:25]}  Bxb2 {[%clk 0:02:40]} 10. Rd1 {[%clk 0:02:24]}  Qa5+ {[%clk 0:02:28]} 11. Nd2 {[%clk 0:02:12]}  Nf6 {[%clk 0:02:22]} 12. Qb3 {[%clk 0:02:04]}  Bc3 {[%clk 0:02:22]} 13. Bd3 {[%clk 0:02:02]}  Rd8 {[%clk 0:01:35]} 14. Ke2 {[%clk 0:01:44]}  Bxd2 {[%clk 0:01:25]} 15. Rxd2 {[%clk 0:01:43]}  Ne4 {[%clk 0:01:25]} 16. Rhd1 {[%clk 0:01:39]}  Nxd2 {[%clk 0:01:20]} 17. Rxd2 {[%clk 0:01:40]}  Be6 {[%clk 0:01:10]} 18. Qxb7 {[%clk 0:01:38]}  Qxc5 {[%clk 0:01:10]} 19. Kf1 {[%clk 0:01:20]}  Bc4 {[%clk 0:01:04]} 20. Qb2 {[%clk 0:01:16]}  Bxd3+ {[%clk 0:00:54]} 21. cxd3 {[%clk 0:01:17]}  Rac8 {[%clk 0:00:50]} 22. Ke2 {[%clk 0:01:16]}  f6 {[%clk 0:00:47]} 23. Qb3+ {[%clk 0:01:14]}  Kg7 {[%clk 0:00:45]} 24. h4 {[%clk 0:01:09]}  e5 {[%clk 0:00:41]} 25. Bg3 {[%clk 0:01:07]}  e4 {[%clk 0:00:29]} 26. dxe4 {[%clk 0:00:49]}  Rxd2+ {[%clk 0:00:30]} 27. Kxd2 {[%clk 0:00:49]}  Qc1+ {[%clk 0:00:31]} 28. Ke2 {[%clk 0:00:40]}  Rc2+ {[%clk 0:00:20]} 29. Kf3 {[%clk 0:00:41]}  Qd1+ {[%clk 0:00:20]} 30. Kf4 {[%clk 0:00:40]}  g5+ {[%clk 0:00:15]} 31. hxg5 {[%clk 0:00:33]}  fxg5+ {[%clk 0:00:16]} 32. Kxg5 {[%clk 0:00:31]}  Qd8+ {[%clk 0:00:11]} 33. Kg4 {[%clk 0:00:29]}  Qd7+ {[%clk 0:00:10]} 34. Kf3 {[%clk 0:00:27]}  Qf7+ {[%clk 0:00:08]} 35. Bf4 {[%clk 0:00:25]}  Qxb3 {[%clk 0:00:05]} 36. axb3 {[%clk 0:00:25]}  Ra2 {[%clk 0:00:05]} 37. Bd6 {[%clk 0:00:24]}  a5 {[%clk 0:00:04]} 38. Bc7 {[%clk 0:00:23]}  Ra3 {[%clk 0:00:04]} 39. e5 {[%clk 0:00:23]}  Kf7 {[%clk 0:00:04]} 40. Ke4 {[%clk 0:00:23]}  Ke6 {[%clk 0:00:05]} 41. f4 {[%clk 0:00:23]}  Rxb3 {[%clk 0:00:05]} 42. Bxa5 {[%clk 0:00:23]}  Ra3 {[%clk 0:00:05]} 43. f5+ {[%clk 0:00:22]}  Kd7 {[%clk 0:00:06]} 44. Bb6 {[%clk 0:00:21]}  Ra5 {[%clk 0:00:04]} 45. Bd4 {[%clk 0:00:22]}  Ra4 {[%clk 0:00:04]} 46. g4 {[%clk 0:00:22]}  Ke7 {[%clk 0:00:05]} 47. g5 {[%clk 0:00:22]}  Kf7 {[%clk 0:00:06]} 48. e6+ {[%clk 0:00:22]}  Ke7 {[%clk 0:00:06]} 49. Kd5 {[%clk 0:00:22]}  Ra5+ {[%clk 0:00:06]} 50. Bc5+ {[%clk 0:00:22]}  Ke8 {[%clk 0:00:05]} 51. e4 {[%clk 0:00:23]}  Ra6 {[%clk 0:00:04]} 52. f6 {[%clk 0:00:23]}  h6 {[%clk 0:00:03]} 53. f7+ {[%clk 0:00:22]}  Kd8 {[%clk 0:00:02]} 54. f8=Q+ {[%clk 0:00:22]} 1-0


[Site "https://www.chess.com"]